Cogmind - Beta 17 @@@ ROGUE MODE // 2026.07.15 @ 21:31:03 Player: Dadrick Result: Destroyed by Y-54 Guardian with Flak Gun Performance ------------- Evolutions (3) 1500 Regions Visited (5) 1000 Robots Destroyed (98) 490 Value Destroyed (3107) 3107 Prototype IDs (20) 400 Alien Tech Used (0) 0 Bonus (0) 0 TOTAL SCORE: 6497 Bonus ------- None Cogmind --------- Core Integrity 0/700 Matter 300/300 Energy 99/100 System Corruption 1% Temperature Cool (0) Movement Core (50) Location -7/Storage Parts ------- > --- POWER (1) -------- (None) > --- PROPULSION (4) --- (None) > --- UTILITY (5) ------ (None) > --- WEAPON (3) ------- (None) > --- INVENTORY (5) ---- Titanium Leg Improved Gravmag System High-capacity Matter Pod (200) Seismic Detector Seismic Detector Peak State ------------ > --- POWER ------------ Improved Deuterium Engine > --- PROPULSION ------- Titanium Leg Improved Titanium Leg Improved Titanium Leg Improved Titanium Leg > --- UTILITY ---------- Improved Cooling System Large Storage Unit Hardened Medium Armor Plating Makeshift Hacking Suite System Shield > --- WEAPON ----------- Advanced Beam Rifle Advanced Beam Rifle Advanced Beam Rifle > --- INVENTORY -------- Deuterium Engine Titanium Leg Titanium Leg Improved Titanium Leg Advanced Visual Processing Unit Seismic Detector Microactuators Improved Light Armor Plating Scrap Shield Heavy Particle Gun Advanced Beam Rifle Missile Launcher Missile Launcher Flail [Rating: 50] Favorites ----------- Power Ion Engine Engine Ion Engine Power Core Light Nuclear Core Propulsion Spiked Treads Treads Spiked Treads Leg Improved Titanium Leg Wheel Wheel Hover Unit Improved Airjet Utility Small Storage Unit Device Seismic Detector Storage Small Storage Unit Processor Core Analyzer Hackware Makeshift Hacking Suite Protection Light Armor Plating Weapon Advanced Beam Rifle Energy Gun Advanced Beam Rifle Energy Cannon Beam Cannon Ballistic Gun Enhanced Autogun Ballistic Cannon Battle Cannon Launcher Subdweller Shrapnel Launcher Special Weapon Mining Laser Impact Weapon Flail Slashing Weapon Scythe Build | -11 -10 -10 -8 -7 -7 ------- Run | Yrd Mat Sub Mat Fac Sto Slots Evolved 6 | . . . 4 2 . Power . | . . . . . . Propulsion 2 | . . . 1 1 . Utility 3 | . . . 2 1 . Weapon 1 | . . . 1 . . Parts Attached 72 | 7 7 12 24 12 10 Power 9 | 1 1 2 2 1 2 Engine 8 | 1 1 2 1 1 2 Core 1 | . . . 1 . . Reactor . | . . . . . . Propulsion 19 | 2 . 4 7 4 2 Treads 9 | 2 . 4 3 . . Leg 7 | . . . 3 4 . Wheel 1 | . . . 1 . . Hover 2 | . . . . . 2 Flight . | . . . . . . Utility 19 | 2 2 2 5 6 2 Device 7 | 1 1 . 1 4 . Storage 3 | 1 1 . 1 . . Processor 1 | . . . . . 1 Hackware 2 | . . . 2 . . Protection 6 | . . 2 1 2 1 Artifact . | . . . . . . Weapon 25 | 2 4 4 10 1 4 Energy Gun 7 | 1 . 1 3 1 1 Energy Cannon 2 | . 2 . . . . Ballistic Gun 4 | 1 . . 1 . 2 Ballistic Cannon 2 | . . 1 1 . . Launcher 5 | . 1 2 2 . . Special Weapon 1 | . 1 . . . . Impact Weapon 3 | . . . 2 . 1 Slashing Weapon 1 | . . . 1 . . Piercing Weapon . | . . . . . . Special Melee Weapon . | . . . . . . Unidentified Prototypes 5 | . . . 2 . 3 Parts Lost 22 | . . 3 7 1 11 Power 4 | . . 2 1 . 1 Propulsion 6 | . . . 4 1 1 Utility 5 | . . . . . 5 Weapon 7 | . . 1 2 . 4 Highest Loss Streak 5 | . . 1 2 1 5 To Critical Strikes . | . . . . . . Average Backups 8 | 2 7 6 8 14 12 Power . | . . . . . . Propulsion 1 | . . 1 1 3 3 Utility 3 | . 3 2 3 5 4 Weapon 2 | 1 3 1 2 4 2 Tool/Special . | . . . . . . Unused Backups 19 | . 3 1 5 3 7 Power . | . . . . . . Propulsion 6 | . . . 2 . 4 Utility 8 | . 2 1 . 2 3 Weapon 5 | . 1 . 3 1 . Tool/Special . | . . . . . . Average Slot Usage (%) 97 | . 99 99 95 98 70 Engine 11 | . 14 13 8 6 5 Treads 20 | . 27 27 16 . . Leg 6 | . . . 7 29 18 Device 9 | . 14 8 7 13 10 Storage 11 | . 14 14 9 7 5 Hackware 4 | . . . 17 13 5 Protection 3 | . . 5 1 1 5 Energy Gun 6 | . 2 2 2 21 13 Energy Cannon 4 | . 21 3 . . . Ballistic Gun 1 | . 2 1 6 . . Ballistic Cannon 5 | . . 9 3 . . Launcher 5 | . . 10 2 . . Impact Weapon 1 | . . . 5 1 1 Peak Build Rating 50 | 7 7 16 40 50 50 Average Rating 19 | 5 6 12 27 47 35 On Entrance 19 | . 7 7 16 40 49 Avg Prop Armor Cover (%) 5 | . . . 5 . . Naked Turns 52 | . . . . . 52 Heaviest Build 48 | 13 17 25 38 47 48 Greatest Support 77 | 40 40 40 60 77 70 Greatest Overweight (x) 3 | . . . 3 . 1 Average Overweight (x) . | . . . . . . Largest Inventory Capacity 20 | 8 20 8 15 15 15 Average Capacity 9 | 7 8 8 11 15 12 Most Carried 15 | 4 8 8 15 15 15 Average Carried 9 | 2 7 7 9 14 11 Final Capacity 15 | 8 8 8 15 15 5 Final Carried 15 | 4 8 8 14 15 5 Class Distribution -------------------- 58% | Mutant 14% | Hacker-Mutant 12% | Derelict-Mutant 11% | Hacker-Bomber Dominant Class ---------------- Mutant | -10/Materials Mutant | -10/Subcaves Hacker-Mutant | -8/Materials Hacker-Bomber | -7/Factory Mutant | -7/Storage Resources | -11 -10 -10 -8 -7 -7 ----------- Run | Yrd Mat Sub Mat Fac Sto Matter Collected 3154 | 294 262 1077 696 466 359 Remotely . | . . . . . . Salvage Created 3167 | 109 354 378 983 846 497 Parts 146 | 15 19 31 29 32 20 Haulers Intercepted 4 | . 1 . 2 . 1 Recyclers Shooed 4 | 1 1 . 1 1 . Parts Field Recycled . | . . . . . . Retrieved Matter . | . . . . . . Parts Self-Destructed 17 | . . 17 . . . Prevented . | . . . . . . Parts Restored . | . . . . . . Kills | -11 -10 -10 -8 -7 -7 ------- Run | Yrd Mat Sub Mat Fac Sto Combat Hostiles Destroyed 71 | . 9 21 20 12 9 Melee 6 | . . . 3 . 3 Guns 14 | . . . 3 9 2 Cannons 11 | . 7 3 1 . . AOE 31 | . 2 18 11 . . Classes Destroyed 17 | 2 4 2 3 4 2 Worker 2 | . . . 1 1 . Builder 3 | . . . 1 1 1 Tunneler 3 | 3 . . . . . Hauler 4 | . 1 . 2 . 1 Recycler 9 | 1 1 . 5 2 . Mechanic 1 | . . . 1 . . Operator 1 | . . . . 1 . Watcher 4 | . 2 . 1 1 . Swarmer 14 | . 5 3 4 2 . Grunt 22 | . 4 . 13 2 3 Brawler 1 | . . . . 1 . Duelist 3 | . . . . . 3 Protector 1 | . . . . . 1 Sentry 5 | . . 1 3 1 . Hunter 2 | . . . . 2 . Programmer 5 | . . . . 4 1 Subdweller 17 | . . 17 . . . Thug 1 | . . . . . 1 Best Kill Streak 5 | 1 3 3 5 4 5 Combat Bots Only 5 | . 3 3 4 3 5 Max Kills in Single Turn 3 | 1 2 3 3 2 1 Gunslinging . | . . . . . . Exploded 3 | . 2 3 2 . . Melee 1 | . . . 1 . 1 Uniques/NPCs Destroyed . | . . . . . . Combat | -11 -10 -10 -8 -7 -7 -------- Run | Yrd Mat Sub Mat Fac Sto Hostile Shots Fired 454 | . 22 56 117 105 154 Missed 133 | . 5 19 34 25 50 Hits 321 | . 17 37 83 80 104 Melee 20 | . . . . 1 19 Projectile 301 | . 17 37 83 79 85 AOE 1 | . . . . . 1 Critical Strikes 23 | . 1 3 5 1 13 Part Disruptions 1 | . . . . 1 . Damage Taken 5720 | . 171 1175 1271 1014 2089 Core 1036 | . 31 151 154 111 589 Absorbed by Shields . | . . . . . . Regen/Repaired (Parts) 284 | . . . . 179 105 Core Remaining (%) 66 | 100 . 27 72 . . Volleys Fired 234 | 8 40 77 43 46 20 Largest 3 | 2 2 2 3 3 3 Hottest 183 | 70 120 120 183 183 183 Shots Fired 423 | 16 73 85 60 136 53 Gun 286 | 16 23 19 39 136 53 Cannon 71 | . 44 22 5 . . Launcher 61 | . 1 44 16 . . Special 5 | . 5 . . . . Kinetic 89 | 8 12 39 25 . 5 Thermal 313 | 8 60 35 26 136 48 Explosive 21 | . 1 11 9 . . Electromagnetic . | . . . . . . Robot Hit Streak 16 | 4 7 16 5 8 10 Robot Miss Streak 5 | 2 4 1 5 3 3 Penetration Max 1 | . . . . . 1 Secondary Targets 1 | . . . . 1 . Max Gunslinging Chain 1 | . . . . 1 . Shots Hit Robots 276 | 8 36 40 64 76 52 Core Hits 137 | 5 14 30 43 28 17 Critical Kills 1 | . . . . . 1 Critical Parts Destroyed 7 | . . . 3 . 4 Critical Strikes 24 | 1 . . 5 8 10 Burn 15 | 1 . . 1 8 5 Smash 8 | . . . 3 . 5 Sever 1 | . . . 1 . . Melee Attacks 87 | . . . 47 19 21 Impact 77 | . . . 37 19 21 Slashing 10 | . . . 10 . . Piercing . | . . . . . . Sneak Attacks 7 | . . . 6 1 . Combat Hostiles . | . . . . . . Follow-up Attacks 5 | . . . 5 . . Damage Inflicted 10343 | 100 714 2825 3353 1792 1559 Guns 3146 | 100 141 22 413 1680 790 Cannons 773 | . 417 284 72 . . Explosions 4220 | . 146 2519 1555 . . Melee 2161 | . . . 1313 100 748 Ramming 43 | . 10 . . 12 21 Kinetic 3413 | 27 78 2192 991 . 125 Thermal 3446 | 73 480 288 260 1680 665 Explosive 1280 | . 146 345 789 . . Electromagnetic . | . . . . . . Impact 1911 | . . . 1063 100 748 Slashing 250 | . . . 250 . . Piercing . | . . . . . . Highest Corruption 2 | . . . . 2 1 Average Corruption 1 | . . . . 1 1 Corruption Purged 2 | . . . . 2 . Corruption Blocked . | . . . . . . Effects 1 | . . . . 1 . Parts Rejected 1 | . . . . 1 . Overload Shots . | . . . . . . Overflow Damage 680 | . 22 17 364 70 207 Projectiles 12 | . 12 . . . . Explosions 107 | . 10 17 80 . . Melee 561 | . . . 284 70 207 Knockbacks 12 | . 1 . 10 . 1 Impact 8 | . 1 . 6 . 1 Kinetic 4 | . . . 4 . . Secondary . | . . . . . . Self-Inflicted Damage 138 | . . 77 53 . 8 Shots 4 | . . 2 2 . . Rammed 8 | . 2 . . . 6 Targets Rammed 9 | . 2 . . 1 6 Kicked 1 | . . . . 1 . Crushed . | . . . . . . Highest Temperature 450 | 18 120 247 201 212 450 Average Temperature 56 | 8 35 149 47 69 82 Received Heat Transfer 1736 | . 51 386 603 90 606 Siege Activations . | . . . . . . Martial Activations . | . . . . . . Shielding Activations . | . . . . . . Robots Disrupted . | . . . . . . Combat Hostiles . | . . . . . . Robots Corrupted 8 | . . . 5 . 3 Combat Hostiles 5 | . . . 2 . 3 Parts Fried 9 | . . . 3 1 5 Impact Corruptions 22 | . . . 11 2 9 Robots Melted 4 | . . . . 3 1 Combat Hostiles 4 | . . . . 3 1 Parts Melted 17 | . 1 2 2 11 1 Heat Transferred 6986 | 296 1073 580 555 3478 1004 Parts Sabotaged . | . . . . . . Parts Stolen . | . . . . . . Parts Stripped . | . . . . . . Power Chain Reactions . | . . . . . . Alert | -11 -10 -10 -8 -7 -7 ------- Run | Yrd Mat Sub Mat Fac Sto Maximum Alert Level 1 | . . . 1 . . Low Security (%) 83 | 100 100 . 42 100 100 Level 1 16 | . . . 57 . . Level 2 . | . . . . . . Level 3 . | . . . . . . Level 4 . | . . . . . . Level 5 . | . . . . . . High Security . | . . . . . . Max Security . | . . . . . . Peak Influence 329 | 5 93 . 329 127 166 Initial 127 | . 3 . . 127 37 Average 88 | 2 22 . 202 64 39 Influence Increases 2067 | 20 283 90 830 436 408 Destroy 0b10 Robot/C 1060 | . 180 80 400 240 160 Destroy 0b10 Robot/NC 140 | 20 20 . 55 30 15 Destroy Leader 256 | . 46 10 96 72 32 Successful Hack 62 | . 11 . 25 20 6 Disable Machine 165 | . . . 90 60 15 Destroy Structure 159 | . 11 . 134 14 . Partial Spotted 90 | . . . . . 90 Lose Combat Pursuer 135 | . 15 . 30 . 90 Influence Decreases 1901 | 15 268 110 550 633 325 Entered New Map 211 | . 2 10 . 153 46 Time Decay 1510 | 15 266 100 490 470 169 Lost Part 180 | . . . 60 10 110 Squads Dispatched 15 | . 1 . 4 4 6 Investigation 3 | . . . 1 1 1 Extermination 2 | . . . . 2 . Reinforcement 6 | . 1 . 3 1 1 Assault 2 | . . . . . 2 Garrison 2 | . . . . . 2 Intercept . | . . . . . . Searches Triggered . | . . . . . . Construction Impeded 1 | . . . 1 . . Haulers Reinforced 1 | . . . . . 1 Active Scanning Responses . | . . . . . . Cargo Convoy Interrupts . | . . . . . . Stealth | -11 -10 -10 -8 -7 -7 --------- Run | Yrd Mat Sub Mat Fac Sto Distress Signals 4 | . . . 2 1 1 Communications Jammed . | . . . . . . Distress Signals . | . . . . . . Times Spotted 131 | . 21 18 35 28 29 Peak Tracking Total 12 | . 3 2 5 6 12 Tactical Retreats 6 | . 1 . 2 . 3 Traps | -11 -10 -10 -8 -7 -7 ------- Run | Yrd Mat Sub Mat Fac Sto Traps Triggered 11 | . 2 6 1 2 . Indirectly . | . . . . . . Trap Hack Attempts . | . . . . . . Triggered . | . . . . . . Disarmed . | . . . . . . Reprogrammed . | . . . . . . Reused . | . . . . . . Traps Extracted . | . . . . . . Installed . | . . . . . . Triggered . | . . . . . . Machines | -11 -10 -10 -8 -7 -7 ---------- Run | Yrd Mat Sub Mat Fac Sto Machines Disabled 11 | . . . 6 4 1 Max in Single Turn 1 | . . . 1 1 1 Machines Repaired . | . . . . . . Machines Dismantled . | . . . . . . Machines Sabotaged . | . . . . . . Overloaded Fab Kills . | . . . . . . Hacking | -11 -10 -10 -8 -7 -7 --------- Run | Yrd Mat Sub Mat Fac Sto Machines Accessed 23 | . 4 2 5 8 4 Terminals 15 | . 4 . 5 3 3 Fabricators 1 | . . . . 1 . Repair Stations 2 | . . . . 1 1 Recycling Units . | . . . . . . Scanalyzers 3 | . . . . 3 . Garrison Access . | . . . . . . Total Hacks 66 | . 6 14 16 16 14 Successful 42 | . 2 14 7 11 8 Failed 24 | . 4 . 9 5 6 Catastrophic 7 | . 3 . . 3 1 Database Lockouts . | . . . . . . Manual 12 | . 1 . 6 2 3 Terminals 38 | . 6 . 16 6 10 Fabricators 1 | . . . . 1 . Repair Stations 8 | . . . . 4 4 Recycling Units . | . . . . . . Scanalyzers 5 | . . . . 5 . Garrison Access . | . . . . . . Terminal Hacks 29 | . 2 14 7 3 3 Record 13 | . . 13 . . . Robot Analysis 1 | . . . 1 . . Prototype ID Bank 1 | . . . . . 1 Level Access Points 1 | . . . 1 . . Branch Access Points 2 | . . . 1 1 . Locate Traps 2 | . . . 1 1 . Hauler Manifests 4 | . 1 . 1 1 1 Registered Components 1 | . . . 1 . . Zone Layout 3 | . 1 . 1 . 1 Proto ID Catalog 1 | . . 1 . . . Fabricator Hacks 1 | . . . . 1 . Build 1 | . . . . 1 . Repair Station Hacks 8 | . . . . 4 4 Scan Component 4 | . . . . 2 2 Repair 4 | . . . . 2 2 Recycling Unit Hacks . | . . . . . . Scanalyzer 3 | . . . . 3 . Retrieve Study 3 | . . . . 3 . Garrison Access Hacks . | . . . . . . Unauthorized Hacks 1 | . . . . . 1 Terminals 1 | . . . . . 1 Botnet 1 | . . . . . 1 Fabricators . | . . . . . . Repair Stations . | . . . . . . Recycling Units . | . . . . . . Scanalyzers . | . . . . . . Garrison Access . | . . . . . . Data Cores Recovered . | . . . . . . Used . | . . . . . . Hacking Detections 15 | . 3 . 3 6 3 Full Trace Events 1 | . . . . . 1 Feedback Events . | . . . . . . Feedback Blocked . | . . . . . . Robot Schematics Acquired . | . . . . . . Robots Built . | . . . . . . Authchips . | . . . . . . Time . | . . . . . . Total Robot Build Rating . | . . . . . . Part Schematics Acquired . | . . . . . . Parts Built 2 | . . . . 2 . Authchips . | . . . . . . Time 47 | . . . . 47 . Total Part Build Rating 10 | . . . . 10 . Part Studies Acquired 3 | . . . . 3 . Parts Repaired 4 | . . . . 2 2 Time 186 | . . . . 88 98 Parts Recycled . | . . . . . . Recycled Matter . | . . . . . . Retrieved Matter . | . . . . . . Retrieved Components . | . . . . . . Parts Scanalyzed . | . . . . . . Part Schematics Acquired . | . . . . . . Parts Damaged . | . . . . . . Bothacking | -11 -10 -10 -8 -7 -7 ------------ Run | Yrd Mat Sub Mat Fac Sto Used RIF Installer . | . . . . . . Robots Hacked . | . . . . . . Non-combat . | . . . . . . Combat . | . . . . . . Robot Hacks Applied . | . . . . . . Relay Couplers Released . | . . . . . . Fabnet Peak Effective % . | . . . . . . Robots Rewired . | . . . . . . Allies Hacked . | . . . . . . Hacks Repelled . | . . . . . . Allies | -11 -10 -10 -8 -7 -7 -------- Run | Yrd Mat Sub Mat Fac Sto Total Allies 2 | . . . . . 2 Largest Group 2 | . . . . . 2 Highest-Rated Group 62 | . . . . . 62 Highest-Rated Ally 31 | . . . . . 31 Total Orders . | . . . . . . Ally Attacks 3 | . . . . . 3 Total Damage 79 | . . . . . 79 Kills . | . . . . . . Allies Corrupted . | . . . . . . Allies Melted . | . . . . . . Intel | -11 -10 -10 -8 -7 -7 ------- Run | Yrd Mat Sub Mat Fac Sto Active Infowar (turns) 6261 | 9 869 3029 1142 1212 . Seismic 6261 | 9 869 3029 1142 1212 . Robot Analysis Total 1 | . . . 1 . . Derelict Logs Recovered 2 | . . 2 . . . Drone Launches . | . . . . . . Drone Recoveries . | . . . . . . Exploration | -11 -10 -10 -8 -7 -7 ------------- Run | Yrd Mat Sub Mat Fac Sto Turns Passed 10272 | 138 1329 5296 1428 1634 447 Spaces Moved 5757 | 65 672 3078 723 975 244 Core 157 | 3 . . . . 154 Treads 4296 | 62 672 3078 484 . . Legs 1303 | . . . 238 975 90 Wheels 1 | . . . 1 . . Hover . | . . . . . . Flight . | . . . . . . Fastest Speed 50 | 50 160 160 125 115 50 Average Speed 149 | 154 160 160 153 122 75 Slowest Speed 240 | 160 160 160 240 130 118 Overloaded Moves . | . . . . . . Propulsion Burnouts . | . . . . . . Robots Hopped . | . . . . . . Potential Cave-ins . | . . . . . . Cave-ins Triggered . | . . . . . . Exploration Rate (%) 56 | 5 94 98 62 29 51 Regions Visited 5 Branch Regions 2 Pre-discovered Areas 2 | . . 2 . . . Known Exits Taken 2 | . . . 1 1 . Unknown Exits Taken 3 | 1 1 1 . . . Scrap Searched 7 | . . 7 . . . Spaces Dug 24 | . 5 1 6 12 . Terrain Destroyed 511 | . 10 322 167 12 . Melee 18 | . . . 6 12 . Projectile 7 | . 5 2 . . . AOE 486 | . 5 320 161 . . Terrain Rammed . | . . . . . . Walls Destroyed . | . . . . . . Machines Disabled . | . . . . . . Actions | -11 -10 -10 -8 -7 -7 --------- Run | Yrd Mat Sub Mat Fac Sto Total 6880 | 83 836 3350 912 1271 428 Wait 531 | . 81 146 23 173 108 Move 5752 | 64 671 3077 722 974 244 Hop . | . . . . . . Pick Up 54 | 4 11 6 20 9 4 Fast Attach 46 | 7 4 5 14 9 7 Attach 18 | . . 4 5 3 6 Detach 2 | . . . 1 1 . Swap 92 | . 18 24 22 25 3 Drop 61 | . 9 11 21 11 9 Fire 234 | 8 40 77 43 46 20 Melee 81 | . . . 41 19 21 Ram 6 | . . . . . 6 Kick 1 | . . . . 1 . Crush 2 | . 2 . . . . Escape Stasis . | . . . . . . Rewire . | . . . . . . Trap . | . . . . . . Miscellaneous . | . . . . . . Route ------- -11/Scrapyard -10/Materials (discovered 5 exits: [*Mat x3] / [*Min] / *Sub) -10/Subcaves (discovered 2 exits: *Mat x2) -8/Materials (discovered 3 exits: *Fac x3) -7/Factory (discovered 4 exits: *Sto x2 / *Low x2) -7/Storage (discovered 1 exit: [*Fac]) History --------- Turn | Location | Event 11 | -11/Scrapyard | Discovered new exit (range 15) 139 | -11/Scrapyard | Entered Materials 228 | -10/Materials | Discovered new exit (range 7) 303 | -10/Materials | Build established: Mutant 325 | -10/Materials | Discovered new exit (range 8) 788 | -10/Materials | Discovered new exit (range 3) 864 | -10/Materials | Discovered new exit (range 14) 1458 | -10/Materials | Discovered new exit (range 8) 1468 | -10/Materials | Entered Subcaves 1469 | -10/Subcaves | Approached by a straggling Scientist 1500 | -10/Subcaves | Learned Materials stockpile data 2452 | -10/Subcaves | A swath of the cavern ceiling suddenly collapsed 2510 | -10/Subcaves | Shifting Twisted Machinery released Battle Cannon 3820 | -10/Subcaves | Core integrity fell below 50% 3836 | -10/Subcaves | Shifting Twisted Machinery released Flamer 3851 | -10/Subcaves | Shifting Twisted Machinery released Mak. Hacking Suite 3858 | -10/Subcaves | Discovered new exit (range 11) 3867 | -10/Subcaves | Learned location of Zion (-7) 3867 | -10/Subcaves | Met a Zionite searching for "candidates" 4103 | -10/Subcaves | Visited Clippyterm 4107 | -10/Subcaves | Learned location of Section 7 (-3) 4107 | -10/Subcaves | Learned Factory stockpile data 4480 | -10/Subcaves | Discovered new exit (range 8) 4944 | -10/Subcaves | Ambushed by Subdweller buried in earth 4958 | -10/Subcaves | Ambushed by Subdweller buried in earth 5315 | -10/Subcaves | Disturbed a concealed Subdweller 5757 | -10/Subcaves | Shifting Twisted Machinery released Mak. Light Armor Plating 5768 | -10/Subcaves | Shifting Twisted Machinery released Sub. Optics 5841 | -10/Subcaves | Build established: Derelict-Mutant 6596 | -10/Subcaves | Visited 4L-MR0's lab 6764 | -10/Subcaves | Entered Materials 6764 | -8/Materials | Evolved 4 slots: Propulsion x1, Utility x2, Weapon x1 7436 | -8/Materials | Build established: Hacker-Mutant 7901 | -8/Materials | Identified exit to Factory 8192 | -8/Materials | Entered Factory 8192 | -7/Factory | Evolved 2 slots: Propulsion x1, Utility x1 8463 | -7/Factory | Build established: Hacker-Bomber 9075 | -7/Factory | Identified exit to Storage 9075 | -7/Factory | Identified exit to Lower Caves 9193 | -7/Factory | Fabricated Imp. Gravmag System (x2) 9478 | -7/Factory | Repaired Imp. Cooling System 9523 | -7/Factory | Repaired Imp. Titanium Leg+ 9826 | -7/Factory | Entered Storage 9882 | -7/Storage | Repaired Carbon-fiber Leg 9943 | -7/Storage | Repaired Adv. Beam Rifle 10024 | -7/Storage | Met a pair of Derelict thieves 10050 | -7/Storage | P-60 Hacker assimilated allied KD-5QB(g) 10092 | -7/Storage | Garrison activated, responded to threat 10159 | -7/Storage | Lost 5 parts (1p1u3w) 10190 | -7/Storage | Core integrity fell below 50% 10221 | -7/Storage | Lost 5 parts (1n3u1w) 10225 | -7/Storage | Core integrity fell below 20% 10253 | -7/Storage | Discovered new exit (range 16) 10273 | -7/Storage | Destroyed by Y-54 Guardian with Flak Gun Last Messages --------------- 10192_ K-01 Serf collects debris. 10193_ Slammed into G-47 Trooper. 10194_ K-01 Serf collects debris. 10196_ S-27 Virus destroyed. 10218_ Connecting with Door Terminal... 10218_ ALERT: Suspicious activity at Terminal S015. Dispatching Investigation squad. 10221_ Core Analyzer destroyed. 10221_ Critical hit (Burn: +37). 10224_ Slug penetrates Wall. 10224_ Penetrated by Slug. 10234_ Slammed into G-47 Trooper. 10243_ W-25 Informer sends out distress signal. 10253_ EXIT=FOUND 10259_ Slammed into A-02 Transporter. 10259_ Destabilizing: Core damaged (-7). 10259_ A-02 Transporter calls for reinforcements. 10259_ ALERT: Hostile activity reported, dispatching reinforcements to area. 10260_ Slammed into A-02 Transporter. Map ----- +----------------------------------------------------+ | | | | | | | | | | | | | | | | | | | | | | | | | | | ?????????????????????????##??????????????????????? | | ???########????????????? #?????????????????????? | | ???? #???????#????? "#?????????????????????? | | ??? #???????# """ T#?????????????????????? | | #??"" #???????# """ "#?????????????????????? | | #""" #??????## #?????????????????????? | | #""" #??????# """ #?????????????????????? | | #""" #???????# """ #?????????????????????? | | #""" #???????? """ #?????????????????????? | | # #?????????? ???????????????????????? | | #?? ???????????###+###??????????????????????? | | #####+############## ###### #???????????? | | "" @ Y #???????????? | | T ###### #???????????? | | % gg #??????????????????????? | | %###############/#### #??????????????????????? | | #???????????? ?## ##??????????????????????? | | #??????????# ?# #???????????????????????? | | #??????????# !## #???????????????????????? | | #??######### """ ## #???????????????????????? | | #?? ## """ ## #???????????????????????? | | #? ## """ ##k #???????????????????????? | | ## ########### #???????????????????????? | | + #????????? #???????????????????????? | | # / ??? /???????????????????????? | | # # ??? #???????????????????????? | | +? #?????????#####???????????????????????? | | ###? #?????????????????????????????????????? | | ????? #?????????????????????????????????????? | | ?????#######?????????????????????????????????????? | | ??????#??????????????????????????????????????????? | | ??#### ###???????????????????????????????????????? | | ??? #???????????????????????????????????????? | | ### """ #???????????????????????????????????????? | | / """ ????????????????????????????????????????? | | ## """ ????????????????????????????????????????? | | #??? ?????????????????????????????????????????? | +----------------------------------------------------+ Best States ------------- Heat Dissipation 61 Energy Generation 18 Energy Capacity 290 Matter Stores 300 Matter Capacity 300 Sight Range 16 Terrain Scan Density 10 Armor Coverage 225 Evasion (%) 63 Core Analysis 6 Recoil Reduction 3 Offensive Hacking 11 Defensive Hacking 10 Item Schematics ----------------- None Robot Schematics ------------------ None Fabricated ------------ Imp. Gravmag System | x2 | -7/Factory | Preloaded Repaired ---------- Imp. Cooling System | 17% | -7/Factory Imp. Titanium Leg | 26% | -7/Factory Carbon-fiber Leg | 58% | -7/Storage Adv. Beam Rifle | 46% | -7/Storage Studied --------- Titanium Leg | -7/Factory | Hacked Imp. Titanium Leg | -7/Factory | Hacked Gauss Rifle | -7/Factory | Hacked Alien Tech Used ----------------- None Achievements -------------- None Challenges ------------ None Game ------ Seed TrapSmartCrosscalibrator Manual? 0 Play Time 01:11:49 Cumulative 530.2 hours Start 2026.07.15 @ 20:16:12 End 2026.07.15 @ 21:31:03 Sessions 1 Manual Loads 0 Difficulty Rogue Special Mode None Game No. 188 Rogue 167 Adventurer 21 Explorer 0 Win Type - Total 28 Types 16/1/6/1/0/0/0/3/0/1 Lore% 69 Gallery% 75 Achievement% 68 Wizard Run 0 Options --------- Layout 1 ASCII 0 Keyboard 0 Movement Mouse Keybinds 0 Fullscreen 2 Font 32/SmallcapsGlow Map View 77x35 Zoom Use 0% Tactical HUD 1 Map Filters NONE Filters NONE Steam 1 RUN: a66c86a1-a905-4ff4-b3ad-fe11f5d75ebc